[Event "Late-Titled-Tuesday-Blitz-November-28-2023"]
[Site "Chess.com"]
[Date "2023.11.28"]
[Round "5"]
[White "wannabe2700"]
[Black "FaustinoOro"]
[Result "0-1"]
[WhiteElo "2624"]
[BlackElo "2854"]
[TimeControl "180+1"]
[EndTime "14:54:54 PST"]
[Termination "FaustinoOro won by resignation"]

1. e4 {[%clk 0:03:00.9]} 1... c5 {[%clk 0:02:59.4]} 2. Nf3 {[%clk 0:02:59.9]}
2... d6 {[%clk 0:02:59.5]} 3. Bb5+ {[%clk 0:02:59.4]} 3... Nd7 {[%clk 0:02:59]}
4. d4 {[%clk 0:02:58.4]} 4... cxd4 {[%clk 0:02:57.5]} 5. Qxd4 {[%clk 0:02:59.3]}
5... a6 {[%clk 0:02:56.9]} 6. Be2 {[%clk 0:02:58.8]} 6... Ngf6 {[%clk
0:02:54.8]} 7. Nc3 {[%clk 0:02:58.6]} 7... e6 {[%clk 0:02:49.1]} 8. O-O {[%clk
0:02:57.6]} 8... Be7 {[%clk 0:02:49.4]} 9. Rd1 {[%clk 0:02:57]} 9... O-O {[%clk
0:02:45.5]} 10. e5 {[%clk 0:02:52]} 10... dxe5 {[%clk 0:02:34.2]} 11. Nxe5
{[%clk 0:02:52.9]} 11... Nxe5 {[%clk 0:01:59.8]} 12. Qxe5 {[%clk 0:02:53.8]}
12... Bd7 {[%clk 0:01:59.5]} 13. Bf3 {[%clk 0:02:50.8]} 13... Qc8 {[%clk
0:01:57.1]} 14. Be3 {[%clk 0:02:44.3]} 14... Bc6 {[%clk 0:01:55.1]} 15. Qg3
{[%clk 0:02:34.8]} 15... Bxf3 {[%clk 0:01:44.4]} 16. Qxf3 {[%clk 0:02:35.7]}
16... b5 {[%clk 0:01:40]} 17. a3 {[%clk 0:02:19]} 17... Qc4 {[%clk 0:01:29]} 18.
Rd4 {[%clk 0:02:17.6]} 18... Qc7 {[%clk 0:01:23.4]} 19. Rad1 {[%clk 0:02:16.4]}
19... Rac8 {[%clk 0:01:19.8]} 20. h3 {[%clk 0:02:09.5]} 20... h6 {[%clk
0:01:13.5]} 21. R4d3 {[%clk 0:02:00.9]} 21... Rfd8 {[%clk 0:01:00.4]} 22. Bf4
{[%clk 0:01:58]} 22... Rxd3 {[%clk 0:00:45.1]} 23. Rxd3 {[%clk 0:01:56.4]} 23...
Qc6 {[%clk 0:00:41]} 24. Qxc6 {[%clk 0:01:50.1]} 24... Rxc6 {[%clk 0:00:41.9]}
25. Kf1 {[%clk 0:01:46.9]} 25... Kf8 {[%clk 0:00:41.1]} 26. g4 {[%clk
0:01:44.2]} 26... Ke8 {[%clk 0:00:40.8]} 27. Ke2 {[%clk 0:01:43.2]} 27... Nd7
{[%clk 0:00:38.5]} 28. Kd1 {[%clk 0:01:19.5]} 28... Nc5 {[%clk 0:00:36.4]} 29.
Rd2 {[%clk 0:01:18.5]} 29... Bf6 {[%clk 0:00:35.1]} 30. f3 {[%clk 0:00:30.3]}
30... Bxc3 {[%clk 0:00:34.1]} 31. bxc3 {[%clk 0:00:31.2]} 31... Na4 {[%clk
0:00:32.8]} 32. Kc1 {[%clk 0:00:17.3]} 32... f6 {[%clk 0:00:22.4]} 33. Rd6
{[%clk 0:00:13.7]} 33... Rxd6 {[%clk 0:00:20.5]} 34. Bxd6 {[%clk 0:00:14.6]}
34... Nxc3 {[%clk 0:00:21.2]} 35. Kd2 {[%clk 0:00:09.4]} 35... Nd5 {[%clk
0:00:19.7]} 36. Kd3 {[%clk 0:00:08.5]} 36... g6 {[%clk 0:00:15.6]} 37. c4 {[%clk
0:00:08.4]} 37... bxc4+ {[%clk 0:00:14.5]} 38. Kxc4 {[%clk 0:00:09.3]} 38... Kd7
{[%clk 0:00:14.2]} 39. Bf8 {[%clk 0:00:09]} 39... h5 {[%clk 0:00:14.8]} 40. gxh5
{[%clk 0:00:08]} 40... gxh5 {[%clk 0:00:15.7]} 41. Bh6 {[%clk 0:00:07.3]} 41...
Kc6 {[%clk 0:00:12]} 42. Bd2 {[%clk 0:00:06.2]} 42... e5 {[%clk 0:00:10]} 43.
Kd3 {[%clk 0:00:03.7]} 43... Kd6 {[%clk 0:00:07.6]} 44. Ke4 {[%clk 0:00:03.7]}
44... Ke6 {[%clk 0:00:08]} 45. Kd3 {[%clk 0:00:04.2]} 45... f5 {[%clk
0:00:07.9]} 46. Kc4 {[%clk 0:00:04.7]} 46... Nf6 {[%clk 0:00:05.3]} 47. Kc5
{[%clk 0:00:04.5]} 47... e4 {[%clk 0:00:05.4]} 48. Kd4 {[%clk 0:00:03.4]} 48...
exf3 {[%clk 0:00:04.8]} 49. Ke3 {[%clk 0:00:04.3]} 49... Ne4 {[%clk 0:00:05]}
50. Be1 {[%clk 0:00:04.4]} 50... f2 {[%clk 0:00:05.6]} 51. Bxf2 {[%clk
0:00:04.8]} 51... Nxf2 {[%clk 0:00:06.5]} 52. Kxf2 {[%clk 0:00:05.2]} 52... Ke5
{[%clk 0:00:06.1]} 53. Ke3 {[%clk 0:00:05.7]} 53... f4+ {[%clk 0:00:01.5]} 54.
Kf3 {[%clk 0:00:05.4]} 54... h4 {[%clk 0:00:02.2]} 55. a4 {[%clk 0:00:03.4]}
55... a5 {[%clk 0:00:02.9]} 56. Kf2 {[%clk 0:00:02.1]} 56... Ke4 {[%clk
0:00:03.8]} 57. Ke2 {[%clk 0:00:02.2]} 57... f3+ {[%clk 0:00:04.7]} 58. Kf2
{[%clk 0:00:02.5]} 58... Kf4 {[%clk 0:00:05.6]} 59. Kf1 {[%clk 0:00:02.8]} 59...
Kg3 {[%clk 0:00:06.5]} 60. Kg1 {[%clk 0:00:03.2]} 60... Kxh3 {[%clk 0:00:07.4]}
61. Kf2 {[%clk 0:00:03.6]} 61... Kg4 {[%clk 0:00:07.9]} 62. Kg1 {[%clk
0:00:03.9]} 62... Kg3 {[%clk 0:00:08.4]} 63. Kh1 {[%clk 0:00:04]} 63... Kf2
{[%clk 0:00:09]} 64. Kh2 {[%clk 0:00:04.3]} 64... Ke2 {[%clk 0:00:09.7]} 65. Kh3
{[%clk 0:00:05]} 65... f2 {[%clk 0:00:10]} 66. Kxh4 {[%clk 0:00:05.7]} 66...
f1=Q {[%clk 0:00:10.1]} 0-1

[Event "Late-Titled-Tuesday-Blitz-November-28-2023"]
[Site "Chess.com"]
[Date "2023.11.28"]
[Round "5"]
[White "Dzidzik2203"]
[Black "Alex_Banzea"]
[Result "1/2-1/2"]
[WhiteElo "2412"]
[BlackElo "2667"]
[TimeControl "180+1"]
[EndTime "14:54:55 PST"]
[Termination "Game drawn - insufficient material"]

1. d4 {[%clk 0:03:00.9]} 1... Nf6 {[%clk 0:02:59.6]} 2. Nf3 {[%clk 0:03:00.3]}
2... g6 {[%clk 0:03:00]} 3. Bf4 {[%clk 0:02:58.6]} 3... Bg7 {[%clk 0:02:59.7]}
4. e3 {[%clk 0:02:58.1]} 4... O-O {[%clk 0:03:00.3]} 5. h3 {[%clk 0:02:55.7]}
5... d5 {[%clk 0:03:00.7]} 6. Bd3 {[%clk 0:02:53.9]} 6... c5 {[%clk 0:03:01.3]}
7. c3 {[%clk 0:02:54.2]} 7... Nc6 {[%clk 0:03:01.4]} 8. O-O {[%clk 0:02:53.8]}
8... Nd7 {[%clk 0:03:02]} 9. Nbd2 {[%clk 0:02:53]} 9... e5 {[%clk 0:03:02.5]}
10. dxe5 {[%clk 0:02:51.1]} 10... Ndxe5 {[%clk 0:03:03.4]} 11. Nxe5 {[%clk
0:02:48.3]} 11... Nxe5 {[%clk 0:03:04.3]} 12. Be2 {[%clk 0:02:48.1]} 12... Be6
{[%clk 0:03:04.7]} 13. Nf3 {[%clk 0:02:48.2]} 13... Nc6 {[%clk 0:03:04.4]} 14.
Qa4 {[%clk 0:02:41.1]} 14... h6 {[%clk 0:03:00.4]} 15. Rfd1 {[%clk 0:02:40.1]}
15... Qe7 {[%clk 0:02:59.8]} 16. e4 {[%clk 0:02:28.8]} 16... d4 {[%clk
0:02:49.4]} 17. Bb5 {[%clk 0:02:21.7]} 17... Rac8 {[%clk 0:02:42.1]} 18. Bxc6
{[%clk 0:02:15]} 18... Rxc6 {[%clk 0:02:43]} 19. cxd4 {[%clk 0:02:15.4]} 19...
cxd4 {[%clk 0:02:43.2]} 20. Nxd4 {[%clk 0:02:01.8]} 20... Rc4 {[%clk 0:02:43.7]}
21. Qxa7 {[%clk 0:02:02]} 21... Qb4 {[%clk 0:01:56.3]} 22. Be3 {[%clk
0:01:42.8]} 22... Qxb2 {[%clk 0:01:48.1]} 23. Rab1 {[%clk 0:01:41.4]} 23... Qc3
{[%clk 0:01:42.1]} 24. Rb3 {[%clk 0:01:41.7]} 24... Rxd4 {[%clk 0:00:46.1]} 25.
Bxd4 {[%clk 0:01:32.6]} 25... Bxd4 {[%clk 0:00:34.4]} 26. Qxd4 {[%clk 0:01:33]}
26... Qxd4 {[%clk 0:00:34.2]} 27. Rxd4 {[%clk 0:01:33.9]} 27... Bxb3 {[%clk
0:00:33.9]} 28. axb3 {[%clk 0:01:34.8]} 28... Rc8 {[%clk 0:00:30.7]} 29. Rd7
{[%clk 0:01:22.3]} 29... b5 {[%clk 0:00:11.9]} 30. Rd5 {[%clk 0:01:17.1]} 30...
Rb8 {[%clk 0:00:05.5]} 31. f4 {[%clk 0:01:15.8]} 31... Kf8 {[%clk 0:00:04.4]}
32. Kf2 {[%clk 0:01:15.9]} 32... Ke7 {[%clk 0:00:04.9]} 33. Ke3 {[%clk
0:01:15.1]} 33... Ke6 {[%clk 0:00:05.1]} 34. Rc5 {[%clk 0:01:15.3]} 34... h5
{[%clk 0:00:03.2]} 35. b4 {[%clk 0:01:13.2]} 35... Rb7 {[%clk 0:00:03.1]} 36. h4
{[%clk 0:01:09.4]} 36... Rb8 {[%clk 0:00:03.6]} 37. f5+ {[%clk 0:01:09.7]} 37...
Kf6 {[%clk 0:00:03.2]} 38. Kf4 {[%clk 0:01:09.4]} 38... Kg7 {[%clk 0:00:02.3]}
39. Kg5 {[%clk 0:01:01.3]} 39... Rb6 {[%clk 0:00:02.8]} 40. e5 {[%clk 0:00:56]}
40... gxf5 {[%clk 0:00:02.9]} 41. Kxf5 {[%clk 0:00:56.6]} 41... Rg6 {[%clk
0:00:02.9]} 42. Rxb5 {[%clk 0:00:50.7]} 42... Rxg2 {[%clk 0:00:03.5]} 43. Rb7
{[%clk 0:00:45.5]} 43... Rf2+ {[%clk 0:00:03.4]} 44. Ke4 {[%clk 0:00:44.9]}
44... Re2+ {[%clk 0:00:04.3]} 45. Kd4 {[%clk 0:00:40.9]} 45... Kg6 {[%clk
0:00:03.7]} 46. b5 {[%clk 0:00:38.3]} 46... Rh2 {[%clk 0:00:03.7]} 47. Rc7
{[%clk 0:00:34.3]} 47... Rxh4+ {[%clk 0:00:04]} 48. Kc5 {[%clk 0:00:33.8]} 48...
Re4 {[%clk 0:00:03.5]} 49. b6 {[%clk 0:00:23.7]} 49... Rxe5+ {[%clk 0:00:03.4]}
50. Kc6 {[%clk 0:00:18.7]} 50... Re1 {[%clk 0:00:03.1]} 51. b7 {[%clk
0:00:18.8]} 51... Rb1 {[%clk 0:00:03.6]} 52. Rc8 {[%clk 0:00:17.1]} 52... h4
{[%clk 0:00:04]} 53. b8=Q {[%clk 0:00:17.1]} 53... Rxb8 {[%clk 0:00:04.9]} 54.
Rxb8 {[%clk 0:00:18]} 54... Kf5 {[%clk 0:00:03.7]} 55. Kd5 {[%clk 0:00:18.9]}
55... Kf4 {[%clk 0:00:03.2]} 56. Rf8 {[%clk 0:00:17.1]} 56... f5 {[%clk
0:00:03.5]} 57. Ke6 {[%clk 0:00:17.1]} 57... Kg3 {[%clk 0:00:03.5]} 58. Kxf5
{[%clk 0:00:16.3]} 58... h3 {[%clk 0:00:04.4]} 59. Rg8+ {[%clk 0:00:16.7]} 59...
Kf2 {[%clk 0:00:04.5]} 60. Rh8 {[%clk 0:00:14.3]} 60... Kg2 {[%clk 0:00:04.4]}
61. Rg8+ {[%clk 0:00:08.2]} 61... Kf3 {[%clk 0:00:04.6]} 62. Rh8 {[%clk
0:00:05.6]} 62... Kg2 {[%clk 0:00:03.3]} 63. Kg4 {[%clk 0:00:05.8]} 63... h2
{[%clk 0:00:03.5]} 64. Ra8 {[%clk 0:00:03.9]} 64... h1=Q {[%clk 0:00:03.6]} 65.
Ra2+ {[%clk 0:00:04.2]} 65... Kg1 {[%clk 0:00:04.1]} 66. Ra1+ {[%clk 0:00:05.1]}
66... Kg2 {[%clk 0:00:04.6]} 67. Rxh1 {[%clk 0:00:06]} 67... Kxh1 {[%clk
0:00:04.8]} 1/2-1/2

[Event "Late-Titled-Tuesday-Blitz-November-28-2023"]
[Site "Chess.com"]
[Date "2023.11.28"]
[Round "5"]
[White "Dino_Ballecer"]
[Black "wanyaland"]
[Result "1-0"]
[WhiteElo "2582"]
[BlackElo "2439"]
[TimeControl "180+1"]
[EndTime "14:54:57 PST"]
[Termination "Dino_Ballecer won by resignation"]

1. e4 {[%clk 0:02:04]} 1... c5 {[%clk 0:02:58.8]} 2. Nf3 {[%clk 0:02:03.4]} 2...
e6 {[%clk 0:02:58.8]} 3. d3 {[%clk 0:02:03]} 3... d6 {[%clk 0:02:57.5]} 4. g3
{[%clk 0:02:02.5]} 4... Nf6 {[%clk 0:02:57.9]} 5. Bg2 {[%clk 0:02:02.9]} 5...
Be7 {[%clk 0:02:58.5]} 6. O-O {[%clk 0:02:03]} 6... O-O {[%clk 0:02:59]} 7. Re1
{[%clk 0:02:03.1]} 7... Nc6 {[%clk 0:02:59.5]} 8. c3 {[%clk 0:02:02.7]} 8... Re8
{[%clk 0:02:59.9]} 9. d4 {[%clk 0:02:02.3]} 9... e5 {[%clk 0:02:58.7]} 10. dxe5
{[%clk 0:02:01.5]} 10... dxe5 {[%clk 0:02:58.7]} 11. Qe2 {[%clk 0:02:01.3]}
11... h6 {[%clk 0:02:57.2]} 12. Na3 {[%clk 0:02:00.2]} 12... Be6 {[%clk
0:02:54.5]} 13. Nd2 {[%clk 0:01:55.6]} 13... a6 {[%clk 0:02:51.9]} 14. Nf1
{[%clk 0:01:46.7]} 14... b5 {[%clk 0:02:48.8]} 15. Rd1 {[%clk 0:01:44.6]} 15...
Qa5 {[%clk 0:02:36.3]} 16. Ne3 {[%clk 0:01:43.1]} 16... Rad8 {[%clk 0:02:35.9]}
17. Bd2 {[%clk 0:01:40.5]} 17... c4 {[%clk 0:02:34.5]} 18. Nac2 {[%clk
0:01:39.3]} 18... Bc5 {[%clk 0:02:18.5]} 19. a3 {[%clk 0:01:28.6]} 19... Qb6
{[%clk 0:02:13.7]} 20. Nf1 {[%clk 0:01:21.7]} 20... Ng4 {[%clk 0:02:03.5]} 21.
Be3 {[%clk 0:01:20.7]} 21... Nd4 {[%clk 0:01:49]} 22. cxd4 {[%clk 0:00:59.2]}
22... exd4 {[%clk 0:01:48.8]} 23. Bxd4 {[%clk 0:00:49.6]} 23... Bxd4 {[%clk
0:01:48]} 24. Nxd4 {[%clk 0:00:49.3]} 24... Rxd4 {[%clk 0:01:47.8]} 25. Rxd4
{[%clk 0:00:48.2]} 25... Qxd4 {[%clk 0:01:46.9]} 26. Rd1 {[%clk 0:00:48.8]}
26... Qb6 {[%clk 0:01:46.3]} 27. h3 {[%clk 0:00:41.8]} 27... Ne5 {[%clk
0:01:43.7]} 28. Ne3 {[%clk 0:00:38.4]} 28... Nd3 {[%clk 0:01:43.5]} 29. Rd2
{[%clk 0:00:37.2]} 29... Qc5 {[%clk 0:01:38]} 30. Qf3 {[%clk 0:00:36.6]} 30...
Qe5 {[%clk 0:01:28]} 31. b3 {[%clk 0:00:29.2]} 31... Qa1+ {[%clk 0:01:21.5]} 32.
Bf1 {[%clk 0:00:24.1]} 32... Qxa3 {[%clk 0:01:13.6]} 33. bxc4 {[%clk 0:00:23.5]}
33... bxc4 {[%clk 0:01:14.1]} 34. Nxc4 {[%clk 0:00:19.9]} 34... Bxc4 {[%clk
0:01:12.7]} 35. Bxd3 {[%clk 0:00:19.9]} 35... Bxd3 {[%clk 0:01:07.5]} 36. Rxd3
{[%clk 0:00:20]} 36... Qa1+ {[%clk 0:01:06.1]} 37. Kg2 {[%clk 0:00:18.7]} 37...
Qe5 {[%clk 0:01:06.1]} 38. Re3 {[%clk 0:00:15.7]} 38... a5 {[%clk 0:01:04.8]}
39. Qd1 {[%clk 0:00:15.7]} 39... Qe7 {[%clk 0:01:03.8]} 40. Qa4 {[%clk
0:00:15.1]} 40... Ra8 {[%clk 0:01:03]} 41. e5 {[%clk 0:00:14.9]} 41... Qb7+
{[%clk 0:01:02.5]} 42. Kh2 {[%clk 0:00:14.7]} 42... Qb4 {[%clk 0:01:02.5]} 43.
Qxb4 {[%clk 0:00:14.6]} 43... axb4 {[%clk 0:01:02.5]} 44. Rb3 {[%clk 0:00:15.5]}
44... Rb8 {[%clk 0:01:01.7]} 45. Kg2 {[%clk 0:00:15.6]} 45... Kf8 {[%clk
0:01:01.8]} 46. Kf3 {[%clk 0:00:15.7]} 46... Ke7 {[%clk 0:01:02.4]} 47. Ke4
{[%clk 0:00:16.3]} 47... Ke6 {[%clk 0:01:02.9]} 48. f4 {[%clk 0:00:16.3]} 48...
f5+ {[%clk 0:01:02.6]} 49. exf6 {[%clk 0:00:16.1]} 49... gxf6 {[%clk 0:01:02.4]}
50. Kd4 {[%clk 0:00:16.4]} 50... Kf5 {[%clk 0:01:00.8]} 51. Kc4 {[%clk
0:00:15.4]} 51... Ke4 {[%clk 0:01:01]} 52. Kc5 {[%clk 0:00:14.6]} 52... f5
{[%clk 0:01:00.5]} 53. Kd6 {[%clk 0:00:14.3]} 53... Kd4 {[%clk 0:00:58.5]} 54.
Ke6 {[%clk 0:00:14.7]} 54... Rb5 {[%clk 0:00:57.3]} 55. Kf6 {[%clk 0:00:13.7]}
55... Kc4 {[%clk 0:00:57.3]} 56. Rb1 {[%clk 0:00:14.6]} 56... b3 {[%clk
0:00:57.5]} 57. Kg6 {[%clk 0:00:15.2]} 57... Kc3 {[%clk 0:00:56.5]} 58. Kxh6
{[%clk 0:00:15.3]} 58... Kc2 {[%clk 0:00:56.9]} 59. Rg1 {[%clk 0:00:14.6]} 59...
b2 {[%clk 0:00:56.3]} 60. g4 {[%clk 0:00:14.1]} 60... fxg4 {[%clk 0:00:54.1]}
61. hxg4 {[%clk 0:00:15]} 61... Rb4 {[%clk 0:00:53.6]} 62. Kg5 {[%clk 0:00:15]}
62... b1=Q {[%clk 0:00:52.3]} 63. Rxb1 {[%clk 0:00:14.5]} 63... Kxb1 {[%clk
0:00:53.2]} 64. f5 {[%clk 0:00:15.2]} 64... Kc2 {[%clk 0:00:53.4]} 65. f6 {[%clk
0:00:14.6]} 65... Rb8 {[%clk 0:00:49.8]} 66. Kf5 {[%clk 0:00:13.5]} 66... Kd3
{[%clk 0:00:49.7]} 67. g5 {[%clk 0:00:13.6]} 67... Rb5+ {[%clk 0:00:48.8]} 68.
Kf4 {[%clk 0:00:13.6]} 68... Rb4+ {[%clk 0:00:47.7]} 69. Kg3 {[%clk 0:00:12.7]}
69... Rb6 {[%clk 0:00:47.3]} 70. f7 {[%clk 0:00:11.6]} 70... Rb8 {[%clk
0:00:43.6]} 71. g6 {[%clk 0:00:11.6]} 71... Ke4 {[%clk 0:00:43.8]} 72. g7 {[%clk
0:00:11.4]} 1-0

[Event "Late-Titled-Tuesday-Blitz-November-28-2023"]
[Site "Chess.com"]
[Date "2023.11.28"]
[Round "5"]
[White "jcibarra"]
[Black "ThePeacefulPanda"]
[Result "0-1"]
[WhiteElo "2891"]
[BlackElo "2566"]
[TimeControl "180+1"]
[EndTime "14:56:10 PST"]
[Termination "ThePeacefulPanda won by resignation"]

1. e4 {[%clk 0:03:00.9]} 1... e5 {[%clk 0:02:59.6]} 2. Nf3 {[%clk 0:03:01.1]}
2... Nc6 {[%clk 0:03:00.3]} 3. Bb5 {[%clk 0:03:00.9]} 3... Nf6 {[%clk
0:03:00.8]} 4. O-O {[%clk 0:03:00.7]} 4... Nxe4 {[%clk 0:03:01.4]} 5. d4 {[%clk
0:03:01.3]} 5... Nd6 {[%clk 0:03:01.8]} 6. dxe5 {[%clk 0:03:01.3]} 6... Nxb5
{[%clk 0:03:01.7]} 7. a3 {[%clk 0:03:01.5]} 7... a5 {[%clk 0:02:40.9]} 8. a4
{[%clk 0:02:58.3]} 8... Nba7 {[%clk 0:02:40.8]} 9. Re1 {[%clk 0:02:49.1]} 9...
Be7 {[%clk 0:02:40.6]} 10. Nc3 {[%clk 0:02:46.2]} 10... O-O {[%clk 0:02:40.2]}
11. Nd5 {[%clk 0:02:46.5]} 11... d6 {[%clk 0:02:36.3]} 12. Bf4 {[%clk
0:02:05.3]} 12... dxe5 {[%clk 0:02:29.6]} 13. Nxe5 {[%clk 0:02:03.5]} 13... Nxe5
{[%clk 0:02:19.4]} 14. Bxe5 {[%clk 0:02:04.4]} 14... Bd6 {[%clk 0:02:19.8]} 15.
Bc3 {[%clk 0:01:43.1]} 15... Be6 {[%clk 0:02:02]} 16. Qd4 {[%clk 0:01:42.1]}
16... Qg5 {[%clk 0:02:02.1]} 17. f4 {[%clk 0:01:31.8]} 17... Nc6 {[%clk
0:01:50.4]} 18. Qf2 {[%clk 0:00:36.7]} 18... Qxd5 {[%clk 0:01:47.6]} 19. Kh1
{[%clk 0:00:33.5]} 19... Bc5 {[%clk 0:01:45.8]} 20. Qg3 {[%clk 0:00:33.1]} 20...
Bd4 {[%clk 0:01:46.1]} 21. Rad1 {[%clk 0:00:32.6]} 21... Qc5 {[%clk 0:01:46.5]}
22. Rxd4 {[%clk 0:00:24.4]} 22... Nxd4 {[%clk 0:01:41.4]} 23. Re5 {[%clk
0:00:25]} 23... Nf5 {[%clk 0:01:33.3]} 24. Rxf5 {[%clk 0:00:24.9]} 24... Qxc3
{[%clk 0:01:26.3]} 25. Qxc3 {[%clk 0:00:19.5]} 25... Bxf5 {[%clk 0:01:26.2]} 26.
h3 {[%clk 0:00:20.4]} 26... c6 {[%clk 0:01:21.4]} 27. Kh2 {[%clk 0:00:18]} 27...
Be4 {[%clk 0:01:18.9]} 28. g4 {[%clk 0:00:14.3]} 28... Bd5 {[%clk 0:01:18.8]}
29. Kg3 {[%clk 0:00:14.4]} 29... Rfe8 {[%clk 0:01:19.2]} 30. b3 {[%clk
0:00:13.6]} 30... Re4 {[%clk 0:01:18.1]} 31. Qd2 {[%clk 0:00:12.4]} 31... b6
{[%clk 0:01:14.9]} 32. c4 {[%clk 0:00:11.9]} 32... Bxc4 {[%clk 0:01:02]} 33.
bxc4 {[%clk 0:00:11.7]} 33... Rxc4 {[%clk 0:01:02.9]} 34. Qe3 {[%clk 0:00:09.2]}
34... Rxa4 {[%clk 0:00:59.6]} 35. Qxb6 {[%clk 0:00:09.1]} 35... Rb4 {[%clk
0:00:56.7]} 36. Qxc6 {[%clk 0:00:08.7]} 36... Rbb8 {[%clk 0:00:55]} 37. Qa4
{[%clk 0:00:08.1]} 37... Rb4 {[%clk 0:00:54.8]} 38. Qc6 {[%clk 0:00:08.2]} 38...
Rab8 {[%clk 0:00:54.6]} 39. Qa6 {[%clk 0:00:05.1]} 39... a4 {[%clk 0:00:54.7]}
40. f5 {[%clk 0:00:05.8]} 40... Rb3+ {[%clk 0:00:55]} 41. Kh4 {[%clk 0:00:06]}
41... a3 {[%clk 0:00:51.9]} 42. f6 {[%clk 0:00:06.6]} 42... R3b6 {[%clk
0:00:42.1]} 43. Qxa3 {[%clk 0:00:05.9]} 43... Rxf6 {[%clk 0:00:42]} 44. Qa7
{[%clk 0:00:05.1]} 44... Rfb6 {[%clk 0:00:41.5]} 45. Qc7 {[%clk 0:00:05]} 45...
R6b7 {[%clk 0:00:42.4]} 46. Qd6 {[%clk 0:00:05.1]} 46... Ra8 {[%clk 0:00:42.4]}
47. Qc6 {[%clk 0:00:05.2]} 47... Rbb8 {[%clk 0:00:42.7]} 48. Qd5 {[%clk
0:00:05.6]} 48... Rd8 {[%clk 0:00:43]} 49. Qc6 {[%clk 0:00:06.2]} 49... Rf8
{[%clk 0:00:43.1]} 50. Qb7 {[%clk 0:00:06.4]} 50... Rae8 {[%clk 0:00:43.8]} 51.
Kg3 {[%clk 0:00:06.2]} 51... Re6 {[%clk 0:00:44.7]} 52. h4 {[%clk 0:00:05.8]}
52... Rg6 {[%clk 0:00:44.6]} 53. h5 {[%clk 0:00:06.1]} 53... Re6 {[%clk
0:00:44.2]} 54. Kh4 {[%clk 0:00:06.5]} 54... h6 {[%clk 0:00:44.4]} 55. Qd7
{[%clk 0:00:06.7]} 55... Rf6 {[%clk 0:00:44.5]} 56. Qc7 {[%clk 0:00:07]} 56...
Re8 {[%clk 0:00:44.5]} 57. Qd7 {[%clk 0:00:06.5]} 57... Rfe6 {[%clk 0:00:44.9]}
58. Qc7 {[%clk 0:00:06.5]} 58... R6e7 {[%clk 0:00:44.5]} 59. Qd6 {[%clk
0:00:06.7]} 59... Rb7 {[%clk 0:00:41.8]} 60. Qc6 {[%clk 0:00:07]} 60... Rbb8
{[%clk 0:00:42.3]} 61. Qd5 {[%clk 0:00:07.4]} 61... Rbd8 {[%clk 0:00:42.5]} 62.
Qc5 {[%clk 0:00:08]} 62... Re4 {[%clk 0:00:39.8]} 63. Kh3 {[%clk 0:00:05.2]}
63... Rde8 {[%clk 0:00:31.7]} 64. Qd5 {[%clk 0:00:04.8]} 64... R4e5 {[%clk
0:00:31.9]} 65. Qc6 {[%clk 0:00:04.7]} 65... R5e6 {[%clk 0:00:31.1]} 66. Qc7
{[%clk 0:00:05]} 66... R6e7 {[%clk 0:00:25.7]} 67. Qc6 {[%clk 0:00:05.3]} 67...
Kh8 {[%clk 0:00:25]} 68. Kh4 {[%clk 0:00:05.3]} 68... Re6 {[%clk 0:00:24.2]} 69.
Qd7 {[%clk 0:00:05.3]} 69... R6e7 {[%clk 0:00:23.3]} 70. Qd5 {[%clk 0:00:05.6]}
70... Kg8 {[%clk 0:00:22]} 71. Qb5 {[%clk 0:00:05.4]} 71... Rd8 {[%clk
0:00:21.9]} 72. Qc5 {[%clk 0:00:05.6]} 72... Red7 {[%clk 0:00:22.5]} 73. Qb5
{[%clk 0:00:05.8]} 73... Rd5 {[%clk 0:00:22.8]} 74. Qa4 {[%clk 0:00:05.6]} 74...
Rd4 {[%clk 0:00:22.7]} 75. Qb5 {[%clk 0:00:06.3]} 75... Rf4 {[%clk 0:00:18.5]}
76. Kh3 {[%clk 0:00:05.2]} 76... Rc8 {[%clk 0:00:14.7]} 77. Qb7 {[%clk
0:00:04.8]} 77... Rc3+ {[%clk 0:00:13.8]} 78. Kh4 {[%clk 0:00:05.4]} 78... Rcc4
{[%clk 0:00:14.5]} 79. Qb8+ {[%clk 0:00:05.4]} 79... Kh7 {[%clk 0:00:14.5]} 80.
Qb1+ {[%clk 0:00:06]} 80... f5 {[%clk 0:00:14.2]} 81. Kh3 {[%clk 0:00:06.7]}
81... Rc3+ {[%clk 0:00:08.3]} 82. Kh2 {[%clk 0:00:07.2]} 82... Rcf3 {[%clk
0:00:06.6]} 83. gxf5 {[%clk 0:00:06.9]} 83... Rxf5 {[%clk 0:00:07.2]} 84. Kg2
{[%clk 0:00:07.5]} 84... Rf4 {[%clk 0:00:07.5]} 85. Qd3 {[%clk 0:00:07.1]} 85...
Rg4+ {[%clk 0:00:05.6]} 86. Kh3 {[%clk 0:00:07]} 86... Rg5 {[%clk 0:00:06.5]}
87. Kh4 {[%clk 0:00:05.4]} 87... Rxh5+ {[%clk 0:00:06.6]} 88. Kg4 {[%clk
0:00:06.1]} 88... Rg5+ {[%clk 0:00:07.5]} 89. Kh4 {[%clk 0:00:06.7]} 89... Kg6
{[%clk 0:00:06.5]} 90. Qd6+ {[%clk 0:00:06.5]} 90... Rf6 {[%clk 0:00:07]} 91.
Qd3+ {[%clk 0:00:07.1]} 91... Kf7 {[%clk 0:00:06.8]} 92. Qc4+ {[%clk 0:00:07.8]}
92... Kf8 {[%clk 0:00:06.5]} 93. Qc8+ {[%clk 0:00:07.7]} 93... Kf7 {[%clk
0:00:07]} 94. Qc4+ {[%clk 0:00:08.3]} 94... Kg6 {[%clk 0:00:07.7]} 95. Qd3+
{[%clk 0:00:08.6]} 95... Rgf5 {[%clk 0:00:08.4]} 96. Kg4 {[%clk 0:00:07.7]}
96... Kh7 {[%clk 0:00:09]} 97. Qc2 {[%clk 0:00:06.3]} 97... h5+ {[%clk
0:00:09.4]} 98. Kh4 {[%clk 0:00:06.7]} 98... Kh6 {[%clk 0:00:09.7]} 99. Kh3
{[%clk 0:00:06]} 99... Rf3+ {[%clk 0:00:09]} 100. Kg2 {[%clk 0:00:06.3]} 100...
Rf2+ {[%clk 0:00:09.3]} 101. Qxf2 {[%clk 0:00:06.7]} 101... Rxf2+ {[%clk
0:00:10]} 102. Kxf2 {[%clk 0:00:07.6]} 102... g5 {[%clk 0:00:10.4]} 103. Kg3
{[%clk 0:00:08.4]} 103... g4 {[%clk 0:00:11.3]} 104. Kh4 {[%clk 0:00:08.9]}
104... Kg6 {[%clk 0:00:11.4]} 105. Kg3 {[%clk 0:00:09.8]} 105... Kg5 {[%clk
0:00:12.2]} 106. Kh2 {[%clk 0:00:10.3]} 106... h4 {[%clk 0:00:13.1]} 107. Kg2
{[%clk 0:00:11.1]} 107... h3+ {[%clk 0:00:14]} 108. Kh2 {[%clk 0:00:12]} 108...
Kh4 {[%clk 0:00:14.9]} 109. Kh1 {[%clk 0:00:12.4]} 109... g3 {[%clk 0:00:15.4]}
110. Kg1 {[%clk 0:00:13.1]} 110... h2+ {[%clk 0:00:16.3]} 111. Kh1 {[%clk
0:00:14]} 111... Kg4 {[%clk 0:00:15.5]} 112. Kg2 {[%clk 0:00:14.5]} 112... h1=Q+
{[%clk 0:00:16.4]} 113. Kxh1 {[%clk 0:00:15.4]} 113... Kh3 {[%clk 0:00:17.3]}
114. Kg1 {[%clk 0:00:15.8]} 114... g2 {[%clk 0:00:18.2]} 115. Kf2 {[%clk
0:00:16.4]} 115... Kh2 {[%clk 0:00:19.1]} 0-1